[Event "Prague Festival-Masters 2022"]
[Site "Prague"]
[Date "2022.06.17"]
[Round "9.2"]
[White "Shankland, Sam"]
[Black "Nguyen, Thai Dai Van"]
[Result "1/2-1/2"]
[ECO "D33"]
[WhiteElo "2718"]
[BlackElo "2612"]
[Annotator "TA"]
[PlyCount "96"]
[EventDate "2022.06.07"]
[EventType "tourn"]
[EventCountry "CZE"]
[SourceTitle "playchess.com"]
[Source "ChessBase"]
[SourceQuality "1"]
[TimeControl "40/5400+30:1800+30"]

{[%evp 16,96,40,47,39,39,38,38,28,30,35,33,32,37,35,35,40,32,47,41,44,16,29,29,47,44,43,28,34,40,54,44,47,34,55,46,54,54,54,54,70,67,70,61,56,21,21,19,17,16,18,17,27,12,16,16,35,25,28,29,34,7,8,9,20,8,28,28,28,21,21,21,28,28,29,29,29,8,8,-1,0,0,38]} 1. c4 {[%emt 0:00:02]} Nf6 {[%emt 0:02:39]} 2. Nc3 {[%emt 0:00:08]} c5 {[%emt 0:00:23]} 3. Nf3 {[%emt 0:00:07][%cal Bg1f3,Bf3d4,Bd4b3,Bb3d4][%mdl 32]} e6 {[%emt 0:00:22]} 4. g3 {[%emt 0:01:01]} d5 {[%emt 0:00:37]} 5. cxd5 {[%emt 0:00:05]} exd5 {[%emt 0:00:06]} 6. d4 {[%emt 0:00:03]} Nc6 {[%emt 0:00:09]} 7. Bg2 {[%emt 0:00:05]} cxd4 {[%emt 0:00:07] is now debated instead of 7...Be7.} 8. Nxd4 {[%emt 0:00:03]} Bc5 {[%emt 0:00:07]} 9. Nb3 {[%emt 0:00:04][%csl LRc5,LRd5]} Bb6 {[%emt 0:00:06] D33: Tarrasch Defence: 6 g3 sidelines.} 10. Na4 {[%emt 0:00:02]} ({Of course not} 10. Bxd5 Nb4 11. Bf3 Qxd1+ 12. Kxd1 O-O $11) 10... O-O {[%emt 0:02:39]} 11. Nxb6 {[%emt 0:01:16]} axb6 {[%emt 0:00:07] White is slightly better.} 12. Nd4 {[%emt 0:00:03]} Re8 {[%emt 0:02:50][%cal Ob6b5] [#]} 13. b3 $146 {[%emt 0:00:04]} ({Predecessor:} 13. O-O Nxd4 14. Qxd4 Rxe2 15. Be3 Rc2 16. Rfc1 Rxc1+ 17. Rxc1 Bd7 18. Qxb6 Qxb6 19. Bxb6 Rxa2 {½-½ (31) Giri,A (2777)-Carlsen,M (2855) chess24.com INT 2021}) 13... b5 {[%emt 0:34:41]} 14. Bb2 {[%emt 0:01:58]} Qa5+ {[%emt 0:03:50]} 15. Qd2 {[%emt 0:11:34]} Qxd2+ {[%emt 0:02:17]} 16. Kxd2 {[%emt 0:00:01]} Nxd4 {[%emt 0:02:35]} 17. Bxd4 {[%emt 0:00:02] This bishop pair is nice.} Ne4+ {[%emt 0:00:07]} 18. Kd1 {[%emt 0:03:49]} (18. Bxe4 $5 dxe4 19. Rhc1 $14) 18... b4 {[%emt 0:01:14]} 19. Bxe4 {[%emt 0:05:05]} dxe4 {[%emt 0:12:47]} 20. Kd2 {[%emt 0:04:14]} Re6 {[%emt 0:02:55]} 21. Ke3 {[%emt 0:00:38]} Rea6 {[%emt 0:00:27]} 22. Rhd1 {[%emt 0:02:05]} Bf5 {[%emt 0:07:11]} 23. Rd2 {[%emt 0:08:40]} h6 {[%emt 0:01:29]} 24. h4 {[%emt 0:03:28]} h5 {[%emt 0:00:37]} 25. Rb2 {[%emt 0:07:43]} Ra5 {[%emt 0:02:53]} 26. Bb6 {[%emt 0:04:43]} Rb5 {[%emt 0:04:48]} 27. Bc7 {[%emt 0:03:55]} Rc8 {[%emt 0:03:49]} 28. Rc1 {[%emt 0:00:37]} f6 {[%emt 0:04:41]} 29. Rd2 {[%emt 0:01:50]} Kf7 {[%emt 0:00:22]} 30. Rd8 {[%emt 0:01:12]} Rxd8 {[%emt 0:00:46]} 31. Bxd8 $11 {[%emt 0:00:01][%mdl 4096] Endgame KRB-KRB} Bd7 $1 {[%emt 0:01:37]} 32. Bc7 {[%emt 0:01:32]} ({Much worse is} 32. Kxe4 Bc6+ 33. Kf4 Re5 $15) 32... Bc6 $1 {[%emt 0:00:29]} 33. Bd6 {[%emt 0:01:08]} Ke6 {[%emt 0:00:06]} 34. Bc5 {[%emt 0:00:45]} g6 {[%emt 0:03:14]} 35. Kd4 {[%emt 0:01:24]} Ra5 {[%emt 0:03:46]} 36. Rc2 {[%emt 0:00:19]} ({But not} 36. Bxb4 Rxa2 37. Re1 Bd5 $15) 36... Rb5 {[%emt 0:00:10]} 37. Kc4 {[%emt 0:00:45]} g5 {[%emt 0:00:05]} 38. Rd2 {[%emt 0:00:52]} gxh4 {[%emt 0:00:52]} 39. gxh4 {[%emt 0:00:01]} Kf5 $1 {[%emt 0:00:10]} 40. Bxb4 {[%emt 0:00:00]} Re5 {[%emt 0:00:00]} 41. e3 {[%emt 0:03:01]} Bb5+ {[%emt 0:09:58]} 42. Kc3 {[%emt 0:02:42]} Kg4 $1 {[%emt 0:03:05]} 43. Bd6 {[%emt 0:00:53]} Re6 {[%emt 0:00:11]} 44. Bg3 {[%emt 0:00:30]} Bd3 {[%emt 0:00:20]} 45. a4 {[%emt 0:01:55]} Rc6+ {[%emt 0:00:09]} 46. Kd4 {[%emt 0:02:29]} Bc2 {[%emt 0:01:20] The position is equal.} 47. a5 {[%emt 0:00:33]} Kf5 {[%emt 0:06:46]} 48. Re2 {[%emt 0:11:57]} Bxb3 {[%emt 0:04:14] Weighted Error Value: White=0.05 (flawless) /Black=0.04 (flawless)} 1/2-1/2

[Event "Prague Festival-Masters 2022"]
[Site "Prague"]
[Date "2022.06.17"]
[Round "9.3"]
[White "Vallejo Pons, Francisco"]
[Black "Le, Quang Liem"]
[Result "1/2-1/2"]
[ECO "C77"]
[WhiteElo "2704"]
[BlackElo "2709"]
[Annotator "TA"]
[PlyCount "72"]
[EventDate "2022.06.07"]
[EventType "tourn"]
[EventCountry "CZE"]
[SourceTitle "playchess.com"]
[Source "ChessBase"]
[SourceQuality "1"]
[TimeControl "40/5400+30:1800+30"]

{[%evp 10,72,0,0,0,0,0,0,7,0,0,0,0,0,0,0,6,-6,12,17,24,23,22,8,14,15,13,22,27,21,33,14,21,10,13,15,14,18,24,22,19,14,17,14,19,5,9,15,5,4,10,-8,0,0,0,0,0,0,35,0,0,0,0,0,0]} 1. e4 {[%emt 0:00:04]} e5 {[%emt 0:00:14]} 2. Nf3 {[%emt 0:00:05]} Nc6 {[%emt 0:00:08]} 3. Bb5 {[%emt 0:00:09]} a6 {[%emt 0:00:09]} 4. Ba4 {[%emt 0:00:05]} Nf6 {[%emt 0:00:12][%cal Bg8f6,Bf6d7,Bd7f8,Bf8g6,Bg6e5][%mdl 32]} 5. Nc3 {[%emt 0:00:06]} Bc5 {[%emt 0:03:19]} 6. O-O {[%emt 0:01:03]} O-O {[%emt 0:01:55] C77: Ruy Lopez: 3...a6 4 Ba4 Nf6, unusual lines.} 7. Bxc6 {[%emt 0:01:18]} dxc6 {[%emt 0:00:10]} 8. d3 {[%emt 0:00:06]} Nd7 {[%emt 0:04:46]} 9. Be3 {[%emt 0:02:43]} Re8 {[%emt 0:02:02]} 10. h3 {[%emt 0:07:20]} Bd6 {[%emt 0:01:34]} 11. Nd2 {[%emt 0:01:30]} Nf8 {[%emt 0:00:25]} 12. Nc4 {[%emt 0:00:30]} Ng6 {[%emt 0:00:37] [#]} 13. d4 $146 {[%emt 0:03:24]} ({Predecessor:} 13. a4 Be6 14. Nxd6 cxd6 15. a5 d5 16. Na4 Qh4 17. Qf3 Qe7 18. Bb6 Nf4 19. Rfe1 {1-0 (49) Staniszewski,J (2498)-Corbat,P (2412) ICCF email 2010}) 13... b5 {[%emt 0:13:17]} 14. Nxd6 {[%emt 0:09:38]} cxd6 {[%emt 0:00:50]} 15. dxe5 {[%emt 0:00:26]} Nxe5 {[%emt 0:02:31]} 16. b3 {[%emt 0:08:05]} f5 {[%emt 0:01:37]} 17. exf5 {[%emt 0:08:00]} Bxf5 {[%emt 0:00:23]} 18. Ne2 {[%emt 0:00:43]} Nf7 {[%emt 0:08:04]} 19. Ng3 {[%emt 0:04:37]} Bd7 {[%emt 0:01:32]} 20. Bd4 {[%emt 0:04:57]} Qg5 {[%emt 0:09:10]} 21. Qd3 {[%emt 0:08:46]} c5 {[%emt 0:04:25]} 22. Bb2 {[%emt 0:03:25]} Qg6 {[%emt 0:00:11]} 23. Rfd1 {[%emt 0:06:15]} Bc6 {[%emt 0:02:37]} 24. Qxg6 {[%emt 0:04:50]} (24. Re1 {is interesting.} a5 25. Qf5 Nh6 26. Qxg6 hxg6 27. f3) 24... hxg6 {[%emt 0:00:02]} 25. Nf1 {[%emt 0:00:34]} a5 {[%emt 0:07:34]} 26. Ne3 {[%emt 0:01:54]} a4 {[%emt 0:00:31]} 27. a3 {[%emt 0:00:03]} Re4 {[%emt 0:05:17]} 28. Rd3 {[%emt 0:04:49]} axb3 {[%emt 0:00:13]} 29. cxb3 {[%emt 0:00:10]} b4 {[%emt 0:00:43]} 30. f3 {[%emt 0:02:33]} bxa3 {[%emt 0:05:51]} 31. Rxa3 {[%emt 0:01:06]} Rxa3 {[%emt 0:01:48]} 32. Bxa3 {[%emt 0:01:46]} Ne5 {[%emt 0:00:32]} 33. Rc3 {[%emt 0:10:46]} Rf4 {[%emt 0:02:39]} 34. Bxc5 {[%emt 0:00:52]} dxc5 {[%emt 0:00:11] The position is equal.} 35. Rxc5 {[%emt 0:00:02]} Nxf3+ {[%emt 0:00:22]} 36. gxf3 {[%emt 0:00:12]} Rxf3 {[%emt 0:00:23] A balanced but interesting game.  Weighted Error Value: White=0.04 (flawless) /Black=0.03 (flawless)} 1/2-1/2

[Event "Prague Festival-Masters 2022"]
[Site "Prague"]
[Date "2022.06.17"]
[Round "9.4"]
[White "Vidit, Santosh Gujrathi"]
[Black "Salem, A.R. Saleh"]
[Result "1/2-1/2"]
[ECO "E11"]
[WhiteElo "2723"]
[BlackElo "2690"]
[Annotator "TA"]
[PlyCount "75"]
[EventDate "2022.06.07"]
[EventType "tourn"]
[EventCountry "CZE"]
[SourceTitle "playchess.com"]
[Source "ChessBase"]
[SourceQuality "1"]
[TimeControl "40/5400+30:1800+30"]

{[%evp 12,75,32,9,39,34,41,47,36,33,49,16,24,10,17,18,35,31,42,30,42,19,19,20,39,25,31,25,31,22,31,24,35,20,24,11,38,15,13,12,10,15,15,12,10,16,18,18,14,11,11,12,23,14,13,14,66,0,0,0,0,0,0,0,0,0]} 1. Nf3 {[%emt 0:00:22]} d5 {[%emt 0:00:06]} 2. d4 {[%emt 0:01:00]} Nf6 {[%emt 0:01:31]} 3. c4 {[%emt 0:00:12]} e6 {[%emt 0:00:07]} 4. g3 {[%emt 0:02:00]} Bb4+ {[%emt 0:00:05]} 5. Bd2 {[%emt 0:00:08]} a5 {[%emt 0:00:03]} 6. Bg2 {[%emt 0:01:05]} O-O {[%emt 0:00:09]} 7. Qc2 {[%emt 0:04:53]} c5 {[%emt 0:00:06] E11: Bogo-Indian.} 8. cxd5 {[%emt 0:06:17] The main line 8.cxd5 scores better than 8.dxc5.} cxd4 {[%emt 0:00:08]} 9. Nxd4 {[%emt 0:04:48]} Qb6 {[%emt 0:00:11] White is slightly better.} 10. e3 {[%emt 0:00:16]} exd5 {[%emt 0:00:05]} 11. a3 {[%emt 0:00:10]} Bxd2+ {[%emt 0:04:48]} 12. Nxd2 {[%emt 0:00:43]} (12. Kxd2 Nc6 13. Nxc6 bxc6 $17) 12... Nc6 {[%emt 0:00:06]} 13. N2f3 {[%emt 0:00:10]} Bg4 {[%emt 0:06:50]} 14. O-O {[%emt 0:00:09] [#]} Nxd4 $146 {[%emt 0:03:46]} ({Predecessor:} 14... Rac8 15. Qd3 Ne4 16. Rab1 Bh5 17. Bh3 Nxd4 18. Nxd4 Rc5 19. b4 Rc3 20. Qb5 Qxb5 21. Nxb5 {½-½ (28) Wojtaszek,R (2717)-Huschenbeth,N (2605) Warsaw 2020}) 15. Nxd4 {[%emt 0:00:09]} Rfc8 {[%emt 0:00:01]} 16. Qb3 {[%emt 0:08:21]} Qxb3 {[%emt 0:13:05]} 17. Nxb3 {[%emt 0:00:05]} Rc2 {[%emt 0:00:05]} 18. Rab1 {[%emt 0:02:28]} b6 {[%emt 0:01:09]} 19. Nd4 {[%emt 0:12:00][%cal Bb3d4,Bd4e2,Be2c3][%mdl 32]} Rc5 {[%emt 0:05:00]} 20. h3 {[%emt 0:04:18]} Bd7 21. Rfd1 {[%emt 0:51:26]} h5 {[%emt 0:02:30]} 22. Ne2 {[%emt 0:00:30]} Bf5 {[%emt 0:05:34]} 23. Ra1 {[%emt 0:00:30]} Re8 {[%emt 0:56:35]} 24. Nc3 {[%emt 0:00:00]} Ne4 {[%emt 0:00:00]} 25. Nxd5 {[%emt 0:01:00]} Rc2 {[%emt 0:01:00][%csl LRb2,LRf2]} 26. g4 {[%emt 0:00:00]} (26. Nxb6 Nxf2 27. Rdc1 Re2 $15) 26... hxg4 {[%emt 0:00:00]} 27. hxg4 {[%emt 0:00:00]} Bg6 {[%emt 0:00:00]} 28. f4 {[%emt 0:00:00] [#] aiming for f5.} Nf2 {[%emt 0:00:00]} (28... Rxb2 $2 29. f5 $18) 29. Rdc1 {[%emt 0:00:00] Rxc2 is the strong threat.} Nxg4 {[%emt 0:00:00]} 30. Rxc2 {[%emt 0:00:00]} Bxc2 {[%emt 0:00:00]} 31. Rc1 {[%emt 0:00:00]} Bb3 {[%emt 0:00:00]} 32. e4 {[%emt 0:00:00]} Rd8 {[%emt 0:00:00]} 33. Rc6 {[%emt 0:00:00]} Nf6 {[%emt 0:00:00]} (33... Bxd5 $11 34. exd5 Ne3) 34. Rc8 {[%emt 0:00:00]} Rxc8 $11 {[%emt 0:00:00] The position is equal.} 35. Ne7+ {[%emt 0:00:00]} Kf8 {[%emt 0:00:00]} 36. Nxc8 {[%emt 0:00:00]} Nh5 {[%emt 0:00:26]} 37. f5 {[%emt 0:00:00]} Nf4 {[%emt 0:00:01]} 38. Nxb6 {[%emt 0:06:30] Weighted Error Value: White=0.08 (flawless) /Black=0.07 (flawless)} 1/2-1/2

[Event "Prague Festival-Masters 2022"]
[Site "Prague"]
[Date "2022.06.17"]
[Round "9.5"]
[White "Maghsoodloo, Parham"]
[Black "Navara, David"]
[Result "1/2-1/2"]
[ECO "C67"]
[WhiteElo "2699"]
[BlackElo "2682"]
[Annotator "TA"]
[PlyCount "81"]
[EventDate "2022.06.07"]
[EventType "tourn"]
[EventCountry "CZE"]
[SourceTitle "playchess.com"]
[Source "ChessBase"]
[SourceQuality "1"]
[TimeControl "40/5400+30:1800+30"]

{[%evp 15,81,12,14,12,23,22,10,11,15,12,18,16,22,16,21,14,13,0,18,16,18,10,10,11,9,10,10,10,12,0,0,0,0,0,0,0,0,0,0,0,0,0,0,0,0,0,23,23,41,0,8,0,0,0,0,0,0,0,0,-8,-8,-6,0,-1,0,-12,-8,-73]} 1. e4 {[%emt 0:02:13]} e5 {[%emt 0:00:07]} 2. Nf3 {[%emt 0:00:05]} Nc6 {[%emt 0:00:05]} 3. Bb5 {[%emt 0:00:03]} Nf6 {[%emt 0:00:06]} 4. O-O {[%emt 0:00:05][%cal Bh1f1,Bf1e1,Be1e5][%mdl 32]} Nxe4 {[%emt 0:00:04]} 5. Re1 {[%emt 0:00:05]} Nd6 {[%emt 0:00:07]} 6. Nxe5 {[%emt 0:00:04]} Be7 {[%emt 0:00:21]} 7. Bf1 {[%emt 0:00:40]} Nxe5 {[%emt 0:00:08]} 8. Rxe5 {[%emt 0:00:04]} O-O {[%emt 0:00:10]} 9. Nc3 {[%emt 0:00:03] C67: Ruy Lopez: Berlin Defence: 4 0-0 Nxe4.} Bf6 {[%emt 0:00:33]} 10. Re1 {[%emt 0:00:09]} Re8 {[%emt 0:00:59]} 11. Nd5 {[%emt 0:00:08]} Rxe1 {[%emt 0:02:22]} 12. Qxe1 {[%emt 0:00:07][%cal Od2d4]} b6 {[%emt 0:00:39]} 13. c3 {[%emt 0:00:06]} Bb7 {[%emt 0:01:01]} 14. Nxf6+ {[%emt 0:00:17]} Qxf6 {[%emt 0:00:10]} ({Much less strong is} 14... gxf6 15. d4 $16) 15. d3 {[%emt 0:00:03]} Re8 {[%emt 0:01:30]} 16. Qd1 {[%emt 0:00:06] [#]} h6 $146 {[%emt 0:06:17]} ({Predecessor:} 16... a5 17. Qg4 Nf5 18. Qg5 Qxg5 19. Bxg5 f6 20. Bd2 Kf7 21. Re1 Rxe1 22. Bxe1 Ba6 23. f3 h5 {½-½ (41) Fier,A (2573)-Kamsky,G (2676) Bastia 2017}) 17. Bd2 {[%emt 0:02:32]} Qh4 {[%emt 0:22:06]} 18. h3 {[%emt 0:06:26]} Re6 {[%emt 0:04:54] [#] Hoping for ...Rg6.} 19. Qg4 {[%emt 0:02:12]} Qxg4 {[%emt 0:02:28]} 20. hxg4 {[%emt 0:00:06]} Rg6 {[%emt 0:00:18]} 21. f3 {[%emt 0:04:10]} f5 {[%emt 0:00:13]} 22. Be2 {[%emt 0:27:20]} fxg4 {[%emt 0:02:27]} 23. fxg4 {[%emt 0:00:01]} Nf7 {[%emt 0:06:35]} 24. a4 {[%emt 0:04:57]} Re6 {[%emt 0:03:52]} 25. Bf1 {[%emt 0:06:31]} g5 {[%emt 0:18:13]} 26. a5 {[%emt 0:05:17]} Ne5 {[%emt 0:01:23]} 27. axb6 {[%emt 0:11:27]} Rxb6 {[%emt 0:00:17]} ({Don't play} 27... axb6 28. Ra7 Bc6 29. d4 Nxg4 30. c4 $16) 28. b4 {[%emt 0:00:04][%cal Bb2b4,Bb4b5][%mdl 32]} Ra6 {[%emt 0:00:49]} 29. Rxa6 {[%emt 0:00:31]} Bxa6 $11 {[%emt 0:00:09][%mdl 4096] Endgame KBB-KBN} 30. c4 {[%emt 0:00:08]} Nxg4 {[%emt 0:06:04]} 31. Be2 {[%emt 0:00:20]} Ne5 {[%emt 0:03:54]} 32. b5 {[%emt 0:07:38][%mdl 1024] White has compensation.} (32. Bc3 $5 {[%cal Rc3e5]} Ng6 33. Bd4 $14) 32... Bb7 {[%emt 0:10:04] The position is equal.} 33. Ba5 {[%emt 0:01:22]} c6 {[%emt 0:01:06]} 34. Bc7 {[%emt 0:03:24]} Ng6 {[%emt 0:03:17]} 35. Bg4 {[%emt 0:08:29]} cxb5 {[%emt 0:00:47]} 36. cxb5 {[%emt 0:00:05]} Nf8 {[%emt 0:02:13]} 37. Bd6 {[%emt 0:06:15]} Ne6 {[%emt 0:00:25]} 38. Kf2 {[%emt 0:00:53]} Kf7 {[%emt 0:00:35]} 39. g3 {[%emt 0:01:09]} Kg6 {[%emt 0:01:02]} 40. Ke3 {[%emt 0:00:00]} h5 {[%emt 0:00:00]} 41. Bxe6 {[%emt 0:13:07] Weighted Error Value: White=0.03 (flawless) /Black=0.02 (flawless)} (41. Bd1 $11) 1/2-1/2